bitfinex-derivatives/quotes_BTCF0:USTF0_20210703
["timestamp","ask_amount","ask_price","bid_price","bid_amount"]
[1625314339972,0.24057544,34659.0,34658.0,6.58984159]
[1625314340272,0.24057544,34659.0,34658.0,5.11028071]
[1625314340522,0.24057544,34659.0,34658.0,5.05128071]
[1625314342178,0.58160172,34659.0,34658.0,5.05128071]
[1625314343179,0.24057544,34659.0,34658.0,5.05128071]
[1625314343781,0.58168935,34659.0,34658.0,5.05128071]
[1625314345536,0.75237839,34659.0,34658.0,5.05128071]
[1625314345789,0.75237839,34659.0,34658.0,4.83717071]
[1625314346437,2.45823853,34659.0,34658.0,3.52345264]
[1625314347039,3.65233627,34659.0,34658.0,3.52345264]
[1625314347589,3.65233627,34659.0,34658.0,2.3756417]
[1625314347939,3.65233627,34659.0,34658.0,2.13506626]
[1625314348139,3.65233627,34659.0,34658.0,3.29012116]
[1625314348490,3.65233627,34659.0,34658.0,0.69260779]
[1625314348593,3.71133627,34659.0,34656.0,1.1983244]
[1625314348691,3.77033627,34659.0,34656.0,1.1983244]
[1625314348797,3.77033627,34659.0,34657.0,1.15513173]
[1625314348942,0.01229862,34658.0,34657.0,1.16043617]
[1625314349041,0.25287406,34658.0,34657.0,1.16043617]
[1625314349141,0.37087406,34658.0,34657.0,1.16043617]
[1625314349442,0.35857544,34658.0,34657.0,1.15513173]
[1625314349543,1.89465302,34658.0,34652.0,0.33088022]
[1625314350094,1.53457837,34653.0,34649.0,0.33075769]
[1625314350193,1.88428837,34653.0,34649.0,0.33075769]
[1625314350293,1.94328837,34653.0,34649.0,0.33075769]
[1625314350544,1.94328837,34653.0,34650.0,0.00530515]
[1625314350746,1.53459366,34652.0,34650.0,0.00530515]
[1625314350845,1.65259366,34652.0,34650.0,0.00530515]
[1625314350995,0.72172632,34651.0,34650.0,0.00530515]
[1625314351095,0.83972632,34651.0,34649.0,0.00530531]
[1625314351296,2.37435762,34651.0,34647.0,0.33100205]
[1625314351745,2.37435762,34651.0,34646.0,0.33112548]
[1625314351746,1.53469711,34650.0,34646.0,0.33112548]
[1625314351846,1.59369711,34650.0,34646.0,0.33112548]
[1625314351946,1.65269711,34650.0,34646.0,0.33112548]
[1625314352199,1.65269711,34650.0,34636.0,0.9673]
[1625314352650,1.65269711,34650.0,34637.0,0.00530542]
[1625314353001,0.72172632,34638.0,34637.0,0.00530542]
[1625314353152,0.99265632,34638.0,34637.0,0.00530542]
[1625314353502,0.93365632,34638.0,34637.0,0.00530542]
[1625314356355,0.99265632,34638.0,34637.0,0.00530542]
[1625314356857,0.93365632,34638.0,34637.0,0.00530542]
[1625314357409,0.93365632,34638.0,34636.0,0.9673]
[1625314357560,0.99265632,34638.0,34636.0,0.9673]
[1625314357909,0.93365632,34638.0,34636.0,0.9673]
[1625314358618,0.99265632,34638.0,34636.0,0.9673]
[1625314360272,1.05165632,34638.0,34636.0,0.9673]
[1625314363280,1.05165632,34638.0,34631.0,0.2929]
[1625314363380,1.05165632,34638.0,34627.0,1.49026332]
[1625314363580,1.05165632,34638.0,34627.0,1.54926332]
[1625314363833,1.05165632,34638.0,34628.0,1.32982433]
[1625314364030,1.05165632,34638.0,34628.0,1.38882433]
[1625314364131,1.05165632,34638.0,34628.0,1.38352794]
[1625314364483,1.05165632,34638.0,34628.0,0.059]
[1625314365137,0.48115088,34629.0,34628.0,0.059]
[1625314365238,0.71528088,34629.0,34628.0,0.059]
[1625314365436,0.71528088,34629.0,34628.0,0.06429668]
[1625314365838,0.71528088,34629.0,34628.0,0.00529668]
[1625314365938,0.71528088,34629.0,34626.0,1.32243777]
[1625314366189,0.71528088,34629.0,34627.0,0.00529679]
[1625314366739,0.71528088,34629.0,34625.0,0.2929]
[1625314366839,0.71528088,34629.0,34627.0,0.059]
[1625314366939,0.71528088,34629.0,34627.0,0.118]
[1625314367293,0.71528088,34629.0,34628.0,0.00529659]
[1625314367842,0.71528088,34629.0,34626.0,0.00529666]
[1625314368091,0.71528088,34629.0,34628.0,0.00529666]
[1625314368342,0.71528088,34629.0,34627.0,0.00529674]
[1625314368443,0.71528088,34629.0,34627.0,0.06429674]
[1625314368593,0.71528088,34629.0,34627.0,0.059]
[1625314368892,0.71528088,34629.0,34628.0,0.00529674]
[1625314369446,0.71528088,34629.0,34627.0,0.00529674]
[1625314369544,0.71528088,34629.0,34627.0,0.06429674]
[1625314369644,0.71528088,34629.0,34628.0,0.0052966]
[1625314370198,0.71528088,34629.0,34627.0,1.16001951]
[1625314370297,0.71528088,34629.0,34627.0,1.21901951]
[1625314370447,0.71528088,34629.0,34628.0,0.00529661]
[1625314371248,0.71528088,34629.0,34627.0,0.00529673]
[1625314371397,0.71528088,34629.0,34627.0,0.06429673]
[1625314371748,0.71528088,34629.0,34628.0,0.00529675]
[1625314372448,0.71528088,34629.0,34627.0,0.00529675]
[1625314372598,0.71528088,34629.0,34628.0,0.00529677]
[1625314373200,0.71528088,34629.0,34627.0,0.00529677]
[1625314373301,0.71528088,34629.0,34627.0,0.06429677]
[1625314373401,0.71528088,34629.0,34628.0,0.00529683]
[1625314374002,0.71528088,34629.0,34627.0,0.00529699]
[1625314374102,0.71528088,34629.0,34627.0,0.06429699]
[1625314374403,0.77428088,34629.0,34628.0,0.1653764]
[1625314374503,0.71528088,34629.0,34628.0,0.17067359]
[1625314374955,0.77428088,34629.0,34628.0,0.17067359]
[1625314375055,0.71528088,34629.0,34628.0,0.17067359]
[1625314375455,0.77428088,34629.0,34628.0,0.17067359]
[1625314375555,0.71528088,34629.0,34628.0,0.17067359]
[1625314375656,0.77428088,34629.0,34628.0,0.00529719]
[1625314375956,0.71528088,34629.0,34628.0,0.00529719]
[1625314376057,0.77428088,34629.0,34628.0,0.00529719]
[1625314376157,0.71528088,34629.0,34628.0,0.17069444]
[1625314376565,0.77428088,34629.0,34628.0,0.17069444]
[1625314377617,0.83328088,34629.0,34628.0,0.17069444]
[1625314377866,0.83328088,34629.0,34628.0,0.00529719]
[1625314378969,0.83328088,34629.0,34627.0,0.00529614]
[1625314379268,0.77428088,34629.0,34627.0,0.00529614]
[1625314379574,0.83328088,34629.0,34627.0,0.00529614]
[1625314380319,0.77428088,34629.0,34627.0,0.00529614]
[1625314381073,0.83328088,34629.0,34627.0,0.00529614]
[1625314381976,0.83328088,34629.0,34626.0,0.00529531]
[1625314384128,0.83328088,34629.0,34624.0,0.00529599]
[1625314384378,0.83328088,34629.0,34623.0,0.00529599]
[1625314385278,0.48115088,34624.0,34623.0,0.00529599]
[1625314385528,0.48115088,34624.0,34620.0,0.00529628]
[1625314385979,0.48115088,34624.0,34619.0,0.0052963]
[1625314386180,0.54015088,34624.0,34619.0,0.0052963]
[1625314387032,0.54015088,34624.0,34618.0,0.00529677]
[1625314387234,0.24057544,34619.0,34618.0,0.06429677]
[1625314387333,0.43526544,34619.0,34618.0,0.059]
[1625314387433,0.49426544,34619.0,34618.0,0.059]
[1625314387534,0.49426544,34619.0,34618.0,0.06429689]
[1625314389391,0.49426544,34619.0,34618.0,0.00529689]
[1625314390192,0.55326544,34619.0,34618.0,0.00529689]
[1625314390942,0.63966544,34619.0,34618.0,0.00529689]
[1625314391996,0.55326544,34619.0,34618.0,0.00529689]
[1625314394959,0.55326544,34619.0,34617.0,0.9837]
[1625314395309,0.24057544,34618.0,34617.0,0.9837]
[1625314395509,0.35857544,34618.0,34617.0,0.9837]
[1625314395612,0.35857544,34618.0,34608.0,1.2624]
[1625314395712,0.35857544,34618.0,34611.0,0.16584079]
[1625314396263,0.35857544,34618.0,34608.0,1.2054]
[1625314396364,0.35857544,34618.0,34612.0,0.00529683]
[1625314396613,0.35857544,34618.0,34609.0,0.0052968]
[1625314396817,0.35857544,34618.0,34608.0,0.9125]
[1625314397112,0.35857544,34618.0,34610.0,0.00529679]
[1625314397314,0.72172632,34611.0,34610.0,0.00529679]
[1625314397416,0.78072632,34611.0,34609.0,0.00529671]
[1625314397869,0.78072632,34611.0,34609.0,0.06429671]
[1625314398016,0.78072632,34611.0,34609.0,0.00529671]
[1625314398167,0.78072632,34611.0,34609.0,0.08834632]
[1625314398466,0.78072632,34611.0,34610.0,0.0052964]
[1625314398569,0.78072632,34611.0,34610.0,0.25436123]
[1625314399570,0.78072632,34611.0,34610.0,0.08831801]
[1625314399769,0.72172632,34611.0,34610.0,0.08831801]
[1625314399977,0.72172632,34611.0,34610.0,0.31348632]
[1625314400072,0.48115088,34611.0,34610.0,0.37248632]
[1625314400172,0.24057544,34618.0,34610.0,0.37248632]
[1625314400575,0.24057544,34618.0,34611.0,0.00529588]
[1625314400673,0.24057544,34618.0,34611.0,0.23033588]
[1625314400774,0.24057544,34618.0,34611.0,0.34833588]
[1625314401024,0.24057544,34618.0,34617.0,0.0829069]
[1625314401273,0.24057544,34618.0,34617.0,0.1419069]
[1625314401376,0.24057544,34618.0,34617.0,0.62835157]
[1625314401773,0.24057544,34618.0,34617.0,0.56935157]
[1625314402276,0.24057544,34618.0,34617.0,0.73004297]
[1625314402475,0.24057544,34618.0,34617.0,0.73533683]
[1625314402876,0.24057544,34618.0,34617.0,0.48644474]
[1625314404832,0.24057544,34618.0,34617.0,0.56952905]
[1625314405133,0.24057544,34618.0,34617.0,0.73570173]
[1625314405634,0.24057544,34618.0,34617.0,0.56952905]
[1625314406138,0.24057544,34618.0,34617.0,0.48644474]
[1625314406336,0.24057544,34623.0,34617.0,0.54544474]
[1625314406437,0.24057544,34623.0,34617.0,0.60444474]
[1625314406689,0.24057544,34623.0,34618.0,0.00529339]
[1625314406787,0.24057544,34623.0,34618.0,0.35447339]
[1625314407138,0.24057544,34626.0,34618.0,0.35447339]
[1625314407139,0.24057544,34626.0,34621.0,0.99630618]
[1625314407437,0.24057544,34626.0,34625.0,0.48115088]
[1625314407536,0.24057544,34626.0,34625.0,0.72763088]
[1625314407938,0.24057544,34626.0,34625.0,0.73292396]
[1625314409140,0.3255294,34630.0,34625.0,0.79192396]
[1625314409241,0.5544498,34630.0,34625.0,0.79192396]
[1625314409490,0.5544498,34630.0,34629.0,0.24057544]
[1625314409595,0.29957544,34630.0,34629.0,0.29957544]
[1625314409839,0.29957544,34630.0,34629.0,0.30486811]
[1625314410541,0.29957544,34630.0,34629.0,0.38797773]
[1625314410896,0.29957544,34630.0,34629.0,0.55417944]
[1625314411395,0.29957544,34630.0,34629.0,0.47106982]
[1625314412899,0.29957544,34630.0,34629.0,0.41206982]
[1625314413548,0.29957544,34630.0,34629.0,0.24586811]
[1625314414050,0.29957544,34630.0,34629.0,0.41212234]
[1625314414403,0.38470543,34630.0,34629.0,0.32904816]
[1625314414703,0.55479681,34630.0,34629.0,0.24586811]
[1625314414903,0.61379681,34630.0,34629.0,0.24586811]
[1625314415703,0.61379681,34630.0,34629.0,0.24057544]
[1625314416056,0.97954495,34630.0,34629.0,0.24057544]
[1625314416253,1.03854495,34630.0,34629.0,0.24057544]
[1625314416405,3.24897924,34630.0,34629.0,0.24057544]
[1625314416707,4.60921246,34630.0,34629.0,0.24057544]
[1625314416854,4.60921246,34630.0,34625.0,0.72172632]
[1625314417056,4.60921246,34630.0,34626.0,0.00529249]
[1625314417405,0.24057544,34627.0,34626.0,0.00529249]
[1625314417606,0.66368544,34627.0,34626.0,0.00529249]
[1625314417708,2.36426173,34627.0,34626.0,0.00529249]
[1625314419262,2.36426173,34627.0,34625.0,0.48115088]
[1625314419964,2.89187832,34626.0,34625.0,0.48115088]
[1625314420163,3.00987832,34626.0,34625.0,0.48115088]
[1625314420465,3.00987832,34626.0,34625.0,0.48644366]
[1625314421118,3.00987832,34626.0,34625.0,0.00529278]
[1625314421417,3.25045376,34626.0,34625.0,0.00529278]
[1625314421572,3.25045376,34626.0,34623.0,0.00529211]
[1625314421969,1.70163254,34624.0,34623.0,0.00529211]
[1625314422118,1.81963254,34624.0,34623.0,0.00529211]
[1625314422323,4.37207119,34624.0,34623.0,0.00529211]
[1625314422620,4.37207119,34624.0,34620.0,0.00529262]
[1625314423221,4.37207119,34624.0,34619.0,0.00529275]
[1625314423323,4.25528767,34621.0,34619.0,0.00529275]
[1625314423423,0.24057544,34620.0,34616.0,0.2516649]
[1625314423674,0.54381544,34620.0,34616.0,0.2516649]
[1625314423874,1.70185647,34619.0,34617.0,0.25155002]
[1625314424074,1.76085647,34619.0,34617.0,0.25155002]
[1625314424275,0.79877662,34619.0,34618.0,0.49734969]
[1625314425574,0.79877662,34619.0,34618.0,0.41352247]
[1625314425674,1.07888662,34619.0,34618.0,0.41352247]
[1625314425975,1.07888662,34619.0,34618.0,0.24586803]
[1625314426378,0.39811,34619.0,34618.0,0.24586803]
[1625314427078,0.118,34619.0,34618.0,0.24586803]
[1625314427678,0.28833997,34619.0,34618.0,0.91625206]
[1625314428127,0.3735949,34619.0,34618.0,0.91625206]
[1625314428581,0.28833997,34619.0,34618.0,0.24586803]
[1625314428680,0.118,34619.0,34618.0,0.24586803]
[1625314429334,0.79897517,34619.0,34618.0,0.24586803]
[1625314429680,0.79897517,34619.0,34618.0,0.91646687]
[1625314429681,0.118,34619.0,34618.0,0.91646687]
[1625314431386,0.79913543,34619.0,34618.0,0.91646687]
[1625314432737,0.74013543,34619.0,34618.0,0.91646687]
[1625314432893,0.74013543,34619.0,34618.0,1.13159687]
[1625314433388,0.059,34619.0,34618.0,3.31006101]
[1625314433991,0.059,34619.0,34618.0,2.13704186]
[1625314434290,0.2294556,34619.0,34618.0,2.13704186]
[1625314434592,0.31476843,34619.0,34618.0,2.13704186]
[1625314435189,0.31476843,34619.0,34618.0,3.3108154]
[1625314437096,0.37376843,34619.0,34618.0,3.3108154]
[1625314437345,0.118,34619.0,34618.0,3.3108154]
[1625314437847,1.82227308,34619.0,34618.0,2.13704186]
[1625314438246,0.79974331,34619.0,34618.0,2.13704186]
[1625314438696,0.79974331,34619.0,34618.0,2.13174927]
[1625314438799,2.3336185,34619.0,34618.0,2.63474422]
[1625314438898,2.3336185,34619.0,34618.0,2.6400368]
[1625314439705,2.3336185,34619.0,34618.0,1.63459181]
[1625314439802,2.6142085,34619.0,34618.0,1.63459181]
[1625314441056,3.80740359,34619.0,34618.0,1.63459181]
[1625314442861,3.80740359,34619.0,34618.0,0.96399297]
[1625314443010,3.80740359,34619.0,34618.0,0.74886297]
[1625314444411,5.17163152,34619.0,34618.0,0.41367735]
[1625314445115,5.17163152,34619.0,34618.0,0.24586802]
[1625314453679,5.17163152,34619.0,34618.0,0.54360802]
[1625314454133,5.27163152,34619.0,34618.0,0.54360802]
[1625314454833,5.27163152,34619.0,34618.0,0.24586802]
[1625314461098,3.90740359,34619.0,34618.0,0.32980991]
[1625314461749,3.84840359,34619.0,34618.0,0.59043991]
[1625314461899,3.84840359,34619.0,34618.0,0.7582874]
[1625314462200,2.6552085,34619.0,34618.0,1.00992201]
[1625314462300,2.3746185,34619.0,34618.0,1.681154]
[1625314464505,2.3746185,34619.0,34618.0,2.6885695]
[1625314464908,1.35209184,34619.0,34618.0,2.6885695]
[1625314466111,1.41109184,34619.0,34618.0,2.6885695]
[1625314466211,1.63687184,34619.0,34618.0,2.6885695]
[1625314466561,0.95512853,34619.0,34618.0,3.86330497]
[1625314467114,3.85227307,34619.0,34618.0,0.59051922]
[1625314467213,3.85227307,34619.0,34618.0,0.32988922]
[1625314467565,5.30314675,34619.0,34618.0,0.24586802]
[1625314467763,5.31549985,34619.0,34618.0,0.24586802]
[1625314467915,6.84949579,34619.0,34618.0,0.24586802]
[1625314468113,6.84949579,34619.0,34618.0,0.22226802]
[1625314468214,6.84949579,34619.0,34618.0,0.20566802]
[1625314468465,6.84949579,34619.0,34618.0,0.00529258]
[1625314468766,6.84949579,34619.0,34616.0,0.00529184]
[1625314469067,0.01235343,34618.0,34616.0,0.00529184]
[1625314469220,6.30697079,34617.0,34616.0,0.00529184]
[1625314469367,6.36597079,34617.0,34616.0,0.00529184]
[1625314469468,6.42497079,34617.0,34616.0,0.00529184]
[1625314469620,6.43732458,34617.0,34616.0,0.00529184]
[1625314469719,6.67790002,34617.0,34616.0,0.00529184]
[1625314471671,6.91847546,34617.0,34616.0,0.00529184]
[1625314471822,6.90612167,34617.0,34615.0,0.946]
[1625314472122,0.01235405,34616.0,34615.0,0.946]
[1625314472222,0.13035405,34616.0,34615.0,0.946]
[1625314472374,0.13035405,34616.0,34615.0,0.95129217]
[1625314472625,6.43839841,34616.0,34615.0,0.95129217]
[1625314472724,6.42604436,34616.0,34615.0,0.95129217]
[1625314472925,6.51354436,34616.0,34615.0,0.95129217]
[1625314473225,6.52589917,34616.0,34615.0,0.946]
[1625314473577,8.2313674,34616.0,34615.0,0.946]
[1625314474327,6.52589917,34616.0,34615.0,0.946]
[1625314475429,8.23228645,34616.0,34615.0,0.946]
[1625314475930,6.52589917,34616.0,34615.0,0.946]
[1625314476432,6.51354436,34616.0,34615.0,0.946]
[1625314476684,6.52589917,34616.0,34615.0,0.946]
[1625314476935,8.23153896,34616.0,34615.0,0.946]
[1625314477486,8.21918415,34616.0,34615.0,0.946]
[1625314477737,8.23153911,34616.0,34615.0,0.946]
[1625314478091,6.52589932,34616.0,34615.0,0.946]
[1625314478541,6.51354436,34616.0,34615.0,0.946]
[1625314479043,8.21879405,34616.0,34615.0,0.946]
[1625314480496,6.51354436,34616.0,34615.0,0.946]
[1625314492681,6.52590048,34616.0,34615.0,0.946]
[1625314492982,6.51354436,34616.0,34615.0,0.946]
[1625314494539,6.52589987,34616.0,34615.0,0.946]
[1625314494688,6.43839987,34616.0,34615.0,0.946]
[1625314494787,6.37939987,34616.0,34615.0,0.946]
[1625314494887,6.36704436,34616.0,34615.0,0.95129293]
[1625314495089,6.30804436,34616.0,34615.0,0.95129293]
[1625314495192,6.36704436,34616.0,34615.0,0.95129293]
[1625314495840,6.36704436,34616.0,34615.0,1.19186837]
[1625314496242,3.4688827,34616.0,34615.0,1.44444104]
[1625314496595,3.4098827,34616.0,34615.0,1.44444104]
[1625314497197,2.21649194,34616.0,34615.0,2.87424177]
[1625314497294,1.19356122,34616.0,34615.0,3.37895379]
[1625314497795,2.21605697,34616.0,34615.0,2.36952975]
[1625314498249,2.21605697,34616.0,34615.0,3.380058]
[1625314498749,1.19356122,34616.0,34615.0,3.380058]
[1625314501003,1.25256122,34616.0,34615.0,3.380058]
[1625314501155,2.21612193,34616.0,34615.0,3.380058]
[1625314501757,2.21612193,34616.0,34615.0,2.36952975]
[1625314502006,2.27512193,34616.0,34615.0,2.36952975]
[1625314502155,2.21612193,34616.0,34615.0,2.36952975]
[1625314502256,2.27512193,34616.0,34615.0,2.36952975]
[1625314502358,3.46822512,34616.0,34615.0,2.36952975]
[1625314502506,3.40922512,34616.0,34615.0,2.36952975]
[1625314502606,3.46822512,34616.0,34615.0,2.36952975]
[1625314502806,3.52722512,34616.0,34615.0,2.36952975]
[1625314502911,3.46822512,34616.0,34615.0,2.36952975]
[1625314503309,3.40922512,34616.0,34615.0,2.36952975]
[1625314503859,3.52722512,34616.0,34615.0,2.36952975]
[1625314503961,3.46822512,34616.0,34615.0,2.36952975]
[1625314504060,3.46822512,34616.0,34615.0,1.69658039]
[1625314504409,3.52722512,34616.0,34615.0,1.69658039]
[1625314504611,3.52722512,34616.0,34615.0,1.69969446]
[1625314505360,3.46822512,34616.0,34615.0,1.69969446]
[1625314505459,3.46822512,34616.0,34615.0,1.97927446]
[1625314505910,3.52722512,34616.0,34615.0,1.97927446]
[1625314506611,4.89097104,34616.0,34615.0,1.97927446]
[1625314506710,4.89097104,34616.0,34615.0,1.69969446]
[1625314506912,4.89097104,34616.0,34615.0,1.4458338]
[1625314508014,5.08579104,34616.0,34615.0,1.4458338]
[1625314508417,5.08579104,34616.0,34615.0,1.19186837]
[1625314509167,5.08579104,34616.0,34615.0,0.95129293]
[1625314509466,5.08579104,34616.0,34615.0,0.946]
[1625314509566,6.62027484,34616.0,34615.0,0.946]
[1625314509919,6.86085028,34616.0,34615.0,0.946]
[1625314512074,8.56587818,34616.0,34615.0,0.946]
[1625314512579,6.86085028,34616.0,34615.0,0.946]
[1625314514280,8.56579325,34616.0,34615.0,0.946]
[1625314514530,8.65139325,34616.0,34615.0,0.946]
[1625314514729,6.94645028,34616.0,34615.0,0.946]
[1625314514980,8.65138348,34616.0,34615.0,0.946]
[1625314515330,8.66374326,34616.0,34615.0,0.946]
[1625314516330,8.60474326,34616.0,34615.0,0.887]
[1625314517186,8.66374326,34616.0,34615.0,0.887]
[1625314518984,8.66374326,34616.0,34615.0,0.828]
[1625314524641,8.65138348,34616.0,34615.0,0.828]
[1625314525146,8.59238348,34616.0,34615.0,0.828]
[1625314525396,8.65138348,34616.0,34615.0,0.828]
[1625314526852,8.59238348,34616.0,34615.0,0.828]
[1625314526950,8.53338348,34616.0,34615.0,0.828]
[1625314527099,8.44778348,34616.0,34615.0,0.828]
[1625314527198,8.50678348,34616.0,34615.0,0.828]
[1625314527298,8.56578348,34616.0,34615.0,0.828]
[1625314527900,8.50678348,34616.0,34615.0,0.828]
[1625314528002,6.80185028,34616.0,34615.0,0.828]
[1625314528601,6.86085028,34616.0,34615.0,0.828]
[1625314528751,6.80185028,34616.0,34615.0,0.828]
[1625314529352,6.74285028,34616.0,34615.0,0.828]
[1625314531857,6.74285028,34616.0,34615.0,0.83329254]
[1625314532710,6.80185028,34616.0,34615.0,0.828]
[1625314532912,6.86085028,34616.0,34615.0,0.828]
[1625314533164,6.80185028,34616.0,34615.0,0.828]
[1625314533413,6.86085028,34616.0,34615.0,0.828]
[1625314533966,6.80185028,34616.0,34615.0,0.828]
[1625314534066,6.86085028,34616.0,34615.0,0.828]
[1625314534666,6.94815028,34616.0,34615.0,0.828]
[1625314535318,6.96050841,34616.0,34615.0,0.828]
[1625314535468,2.18753737,34616.0,34615.0,0.828]
[1625314535920,8.67070345,34616.0,34615.0,0.828]
[1625314547739,8.58340345,34616.0,34615.0,0.828]
[1625314548090,8.52440345,34616.0,34615.0,0.828]
[1625314549593,6.81840587,34616.0,34615.0,0.828]
[1625314551096,8.52375446,34616.0,34615.0,0.828]
[1625314551196,8.61075446,34616.0,34615.0,0.828]
[1625314551295,8.66975446,34616.0,34615.0,0.828]
[1625314552351,8.58275446,34616.0,34615.0,0.828]
[1625314553102,6.87740587,34616.0,34615.0,0.828]
[1625314554807,8.58281747,34616.0,34615.0,0.828]
[1625314556259,8.66821747,34616.0,34615.0,0.828]
[1625314556359,8.58281747,34616.0,34615.0,0.828]
[1625314556558,8.52381747,34616.0,34615.0,0.828]
[1625314557008,8.58281747,34616.0,34615.0,0.828]
[1625314557358,8.66861747,34616.0,34615.0,0.828]
[1625314557458,8.58281747,34616.0,34615.0,0.828]
[1625314558462,8.66971747,34616.0,34615.0,0.828]
[1625314564624,8.87469763,34616.0,34615.0,0.828]
[1625314565274,8.66971747,34616.0,34615.0,0.828]
[1625314565927,8.66971747,34616.0,34615.0,0.83329161]
[1625314566274,8.61071747,34616.0,34615.0,0.83329161]
[1625314567127,8.32899747,34616.0,34615.0,0.83329161]
[1625314567374,8.26999747,34616.0,34615.0,0.83329161]
[1625314568177,6.56458587,34616.0,34615.0,0.83329161]
[1625314568276,6.56458587,34616.0,34615.0,1.31444249]
[1625314568877,6.55222774,34616.0,34615.0,1.31444249]
[1625314569177,6.55222774,34616.0,34615.0,1.56711651]
[1625314570730,6.55222774,34616.0,34615.0,1.90385625]
[1625314571183,6.55222774,34616.0,34615.0,1.39866716]
[1625314571582,6.55222774,34616.0,34615.0,1.31444249]
[1625314571681,6.61122774,34616.0,34615.0,1.31444249]
[1625314573084,6.61122774,34616.0,34615.0,1.07386705]
[1625314573189,6.69882774,34616.0,34615.0,0.828]
[1625314573286,6.75782774,34616.0,34615.0,0.828]
[1625314573386,6.770191,34616.0,34615.0,0.828]
[1625314573788,8.47851308,34616.0,34615.0,0.828]
[1625314574288,8.71908852,34616.0,34615.0,0.828]
[1625314575090,8.92408303,34616.0,34615.0,0.828]
[1625314575190,8.92408303,34616.0,34615.0,0.8029]
[1625314587973,8.71908852,34616.0,34615.0,0.8029]
[1625314588324,8.92403619,34616.0,34615.0,0.8029]
[1625314592430,8.92403619,34616.0,34615.0,0.46030823]
[1625314593485,8.92403619,34616.0,34607.0,0.24057544]
[1625314593683,0.0123571,34615.0,34607.0,0.24057544]
[1625314593784,6.32127778,34608.0,34607.0,0.24057544]
[1625314593933,6.55900778,34608.0,34603.0,0.25334656]
[1625314594035,6.67700778,34608.0,34603.0,0.25334656]
[1625314594134,6.67700778,34608.0,34603.0,0.02334656]
[1625314594236,0.01235835,34607.0,34603.0,0.02334656]
[1625314594384,6.32162045,34604.0,34601.0,0.9186]
[1625314594486,7.16134677,34604.0,34601.0,0.9186]
[1625314595136,8.03134131,34602.0,34601.0,0.9186]
[1625314595285,8.03134131,34602.0,34595.0,0.057]
[1625314595386,8.14934131,34602.0,34594.0,0.33875957]
[1625314595585,8.16173716,34602.0,34594.0,0.33875957]
[1625314595686,6.32311065,34596.0,34592.0,0.33907823]
[1625314595785,6.60330065,34596.0,34592.0,0.33907823]
[1625314595935,6.66230065,34596.0,34592.0,0.33907823]
[1625314596034,6.72130065,34596.0,34593.0,0.00528242]
[1625314596236,1.53663077,34595.0,34593.0,0.00528242]
[1625314596437,0.72172632,34594.0,34593.0,0.00528242]
[1625314596687,0.78072632,34594.0,34592.0,0.0052825]
[1625314596889,5.90318948,34594.0,34591.0,0.33872767]
[1625314596991,7.09840243,34594.0,34591.0,0.33872767]
[1625314597444,7.09840243,34594.0,34591.0,0.23872767]
[1625314597541,4.78112608,34592.0,34589.0,0.84730772]
[1625314597639,4.84012608,34592.0,34589.0,0.84730772]
[1625314597991,4.77723789,34590.0,34587.0,0.50805207]
[1625314598239,4.83623789,34590.0,34587.0,0.50805207]
[1625314598443,0.24057544,34588.0,34587.0,0.50805207]
[1625314598692,3.65298976,34588.0,34587.0,0.67728649]
[1625314598791,3.65298976,34588.0,34587.0,0.68258388]
[1625314598991,3.71198976,34588.0,34587.0,0.67728649]
[1625314599094,3.65298976,34588.0,34587.0,0.67728649]
[1625314599192,3.65298976,34588.0,34587.0,0.50813656]
[1625314599291,3.71198976,34588.0,34587.0,0.50813656]
[1625314599442,3.65298976,34588.0,34587.0,0.50813656]
[1625314599794,3.65298976,34588.0,34587.0,0.51343403]
[1625314599945,3.65298976,34588.0,34587.0,0.00529747]
[1625314600597,0.24057544,34588.0,34587.0,0.00529747]
[1625314600846,0.24057544,34588.0,34585.0,0.00529738]
[1625314601047,0.24057544,34588.0,34585.0,0.06429738]
[1625314601198,2.45702886,34588.0,34587.0,0.50742482]
[1625314601498,2.45702886,34588.0,34586.0,0.51290885]
[1625314601499,2.51602886,34588.0,34586.0,0.51290885]
[1625314601602,3.70942076,34588.0,34586.0,0.51290885]
[1625314601699,3.70942076,34588.0,34586.0,0.50761138]
[1625314601952,3.70942076,34588.0,34587.0,0.0052975]
[1625314602152,1.49296734,34588.0,34587.0,0.0052975]
[1625314602451,1.49296734,34588.0,34586.0,0.00529578]
[1625314604259,0.29957544,34588.0,34586.0,0.00529578]
[1625314604511,0.24057544,34587.0,34586.0,0.00529578]
[1625314604662,0.29957544,34587.0,34586.0,0.00529578]
[1625314604861,0.29957544,34587.0,34585.0,0.00529617]
[1625314604961,0.24057544,34587.0,34585.0,0.00529617]
[1625314605062,0.24057544,34587.0,34586.0,0.00529608]
[1625314605163,0.29957544,34587.0,34586.0,0.00529608]
[1625314605363,0.29957544,34587.0,34584.0,0.9077]
[1625314605465,1.75720168,34587.0,34584.0,0.9077]
[1625314606064,2.21348752,34585.0,34584.0,0.9077]
[1625314606163,2.27248752,34585.0,34584.0,0.9077]
[1625314606263,2.33148752,34585.0,34584.0,0.9077]
[1625314606465,2.33148752,34585.0,34584.0,0.7276]
[1625314606565,2.8126384,34585.0,34584.0,0.7186]
[1625314607367,6.89902297,34585.0,34584.0,0.7186]
[1625314607467,6.78102297,34585.0,34584.0,0.7186]
[1625314607565,6.84002297,34585.0,34584.0,0.7186]
[1625314607766,5.36665004,34585.0,34584.0,0.7186]
[1625314607915,5.60669004,34585.0,34584.0,0.7186]
[1625314608620,7.13746508,34585.0,34584.0,0.7186]
[1625314609918,5.60669004,34585.0,34584.0,0.7186]
[1625314610821,7.13637008,34585.0,34584.0,0.7186]
[1625314611221,2.36887092,34585.0,34584.0,0.7186]
[1625314611322,3.72852124,34585.0,34584.0,0.7186]
[1625314611625,7.12537811,34585.0,34584.0,0.7186]
[1625314612878,7.12537811,34585.0,34584.0,0.4186]
[1625314613132,7.12537811,34585.0,34573.0,0.29757544]
[1625314613732,0.50928432,34576.0,34573.0,0.29757544]
[1625314613881,0.87644432,34576.0,34573.0,0.24057544]
[1625314614134,0.50925894,34575.0,34573.0,0.24057544]
[1625314614231,0.62725894,34575.0,34573.0,0.24057544]
[1625314614433,1.18830774,34574.0,34573.0,0.24057544]
[1625314614582,1.72845862,34574.0,34573.0,0.24057544]
[1625314614682,1.78745862,34574.0,34573.0,0.24057544]
[1625314615134,1.78745862,34574.0,34572.0,0.9906]
[1625314615483,1.10844987,34574.0,34572.0,0.9906]
[1625314615886,0.50892487,34573.0,34572.0,0.9906]
[1625314615986,0.56792487,34573.0,34572.0,0.9906]
[1625314616085,0.62692487,34573.0,34572.0,0.9906]
[1625314616236,1.30543241,34573.0,34572.0,0.9906]
[1625314616586,0.62692487,34573.0,34572.0,0.9906]